fUSD/lending_fUSD_20260614
["ID","MTS","AMOUNT","RATE_DAILY","PERIOD"]
[425045662,1781445947000,-2782.81,0.00037992,120]
[425045660,1781445947000,-1000.0,0.00037992,30]
[425045661,1781445947000,-1000.0,0.00037992,60]
[425045658,1781445947000,-325.65725359,0.00037992,120]
[425045656,1781445947000,-500.0,0.00037992,120]
[425045659,1781445947000,-1000.0,0.00037992,30]
[425045657,1781445947000,-500.0,0.00037992,120]
[425045664,1781445947000,-2650.27542956,0.00037992,120]
[425045652,1781445947000,-500.0,0.00037992,120]
[425045651,1781445947000,-500.0,0.00037992,120]
[425045653,1781445947000,-500.0,0.00037992,120]
[425045650,1781445947000,-500.0,0.00037992,120]
[425045655,1781445947000,-500.0,0.00037992,120]
[425045678,1781445948000,-500.0,0.00037992,120]
[425045683,1781445948000,-500.0,0.00037992,120]
[425045681,1781445948000,-500.0,0.00037992,120]
[425045682,1781445948000,-500.0,0.00037992,120]
[425045680,1781445948000,-500.0,0.00037992,120]
[425045679,1781445948000,-500.0,0.00037992,120]
[425045676,1781445948000,-500.0,0.00037992,120]
[425045677,1781445948000,-500.0,0.00037992,120]
[425045675,1781445948000,-500.0,0.00037992,120]
[425045668,1781445948000,-336.24478363,0.00037992,120]
[425045673,1781445948000,-500.0,0.00037992,120]
[425045672,1781445948000,-500.0,0.00037992,120]
[425045671,1781445948000,-500.0,0.00037992,120]
[425045670,1781445948000,-500.0,0.00037992,120]
[425045669,1781445948000,-965.26372883,0.00037992,120]
[425045667,1781445948000,-500.0,0.00037992,120]
[425045666,1781445948000,-500.0,0.00037992,120]
[425045665,1781445948000,-1000.0,0.00037992,30]
[425045674,1781445948000,-500.0,0.00037992,120]
[425045684,1781445948000,-500.0,0.00037992,120]
[425045685,1781445948000,-500.0,0.00037992,120]
[425045687,1781445948000,-1000.0,0.00037992,30]
[425045686,1781445948000,-500.0,0.00037992,120]
[425045704,1781445948000,-509.79311318,0.00037992,30]
[425045705,1781445948000,-1520.5006203,0.00037992,120]
[425045701,1781445948000,-127012.03796491,0.00037992,120]
[425045702,1781445948000,-144347.59952062,0.00037992,30]
[425045703,1781445948000,-2182.46443406,0.00037992,30]
[425045700,1781445948000,-2069.6360445,0.00037992,120]
[425045697,1781445948000,-824.69289923,0.00037992,30]
[425045698,1781445948000,-252.64552467,0.00037992,120]
[425045706,1781445948000,-176.84084273,0.00037992,30]
[425045696,1781445948000,-812.91757884,0.00037992,120]
[425045699,1781445948000,-2074.47401045,0.00037992,120]
[425045690,1781445948000,-1000.0,0.00037992,30]
[425045689,1781445948000,-1000.0,0.00037992,30]
[425045691,1781445948000,-1076.44214801,0.00037992,30]
[425045688,1781445948000,-1000.0,0.00037992,30]
[425045693,1781445948000,-5000.0,0.00037992,120]
[425045692,1781445948000,-282.91596616,0.00037992,120]
[425045695,1781445948000,-50000.0,0.00037992,120]
[425045694,1781445948000,-334.77505618,0.00037992,30]
[425045715,1781445949000,-2000.0,0.00037992,120]
[425045722,1781445949000,-552.53,0.00037992,60]
[425045723,1781445949000,-552.53,0.00037992,60]
[425045720,1781445949000,-611.442391,0.00037992,120]
[425045721,1781445949000,-151.00620658,0.00037992,120]
[425045719,1781445949000,-5456.95,0.00037992,120]
[425045718,1781445949000,-1504.49625646,0.00037992,120]
[425045717,1781445949000,-1006.02845129,0.00037992,120]
[425045710,1781445949000,-2716.25275617,0.00037992,120]
[425045714,1781445949000,-501.7833424,0.00037992,30]
[425045713,1781445949000,-1018.3447648,0.00037992,120]
[425045711,1781445949000,-898.72541015,0.00037992,120]
[425045712,1781445949000,-549.0,0.00037992,30]
[425045709,1781445949000,-872.19280683,0.00037992,120]
[425045708,1781445949000,-870.42180782,0.00037992,30]
[425045707,1781445949000,-1961.14120881,0.00037992,120]
[425045716,1781445949000,-250.0,0.00037992,30]
[425045725,1781445949000,-552.53,0.00037992,60]
[425045726,1781445949000,-552.53,0.00037992,60]
[425045727,1781445949000,-4000.0,0.00037992,30]
[425045741,1781445949000,-257.0,0.00037992,120]
[425045742,1781445949000,-257.0,0.00037992,120]
[425045743,1781445949000,-257.0,0.00037992,120]
[425045740,1781445949000,-257.0,0.00037992,120]
[425045738,1781445949000,-257.0,0.00037992,120]
[425045739,1781445949000,-257.0,0.00037992,120]
[425045737,1781445949000,-257.0,0.00037992,120]
[425045736,1781445949000,-257.0,0.00037992,120]
[425045724,1781445949000,-552.53,0.00037992,60]
[425045734,1781445949000,-501.471445,0.00037992,120]
[425045733,1781445949000,-262.72,0.00037992,60]
[425045732,1781445949000,-500.0,0.00037992,60]
[425045731,1781445949000,-500.0,0.00037992,60]
[425045728,1781445949000,-500.0,0.00037992,60]
[425045729,1781445949000,-500.0,0.00037992,60]
[425045730,1781445949000,-500.0,0.00037992,60]
[425045735,1781445949000,-257.0,0.00037992,120]
[425045760,1781445950000,-200.0,0.00037992,30]
[425045758,1781445950000,-50000.0,0.00037992,63]
[425045757,1781445950000,-50000.0,0.00037992,62]
[425045756,1781445950000,-50000.0,0.00037992,61]
[425045754,1781445950000,-50000.0,0.00037992,59]
[425045755,1781445950000,-50000.0,0.00037992,60]
[425045751,1781445950000,-50000.0,0.00037992,56]
[425045748,1781445950000,-5637.99926766,0.00037992,120]
[425045753,1781445950000,-50000.0,0.00037992,58]
[425045750,1781445950000,-50000.0,0.00037992,55]
[425045749,1781445950000,-108146.15287585,0.00037992,60]
[425045747,1781445950000,-24000.0,0.00037992,120]
[425045746,1781445950000,-935.0,0.00037992,60]
[425045745,1781445950000,-6329.17421374,0.00037992,30]
[425045759,1781445950000,-200.0,0.00037992,120]
[425045752,1781445950000,-50000.0,0.00037992,57]
[425045744,1781445950000,-150.0,0.00037992,120]
[425045761,1781445950000,-200.0,0.00037992,60]
[425045764,1781445950000,-1250.14692328,0.00037992,120]
[425045763,1781445950000,-182.43846554,0.00037992,120]
[425045778,1781445950000,-800.0,0.00037992,120]
[425045779,1781445950000,-800.0,0.00037992,120]
[425045774,1781445950000,-800.0,0.00037992,120]
[425045777,1781445950000,-800.0,0.00037992,120]
[425045776,1781445950000,-800.0,0.00037992,120]
[425045773,1781445950000,-800.0,0.00037992,120]
[425045772,1781445950000,-800.0,0.00037992,120]
[425045775,1781445950000,-800.0,0.00037992,120]
[425045770,1781445950000,-800.0,0.00037992,120]
[425045769,1781445950000,-800.0,0.00037992,120]
[425045768,1781445950000,-415.988,0.00037992,120]
[425045766,1781445950000,-110000.0,0.00037992,120]
[425045767,1781445950000,-20000.0,0.00037992,60]
[425045765,1781445950000,-100000.0,0.00037992,120]
[425045762,1781445950000,-200.0,0.00037992,90]
[425045771,1781445950000,-800.0,0.00037992,120]
[425045790,1781445951000,-5000.0,0.00037992,120]
[425045795,1781445951000,-2000.0,0.00037992,120]
[425045794,1781445951000,-2000.0,0.00037992,120]
[425045796,1781445951000,-2000.0,0.00037992,120]
[425045792,1781445951000,-226.00250063,0.00037992,120]
[425045793,1781445951000,-317.72,0.00037992,120]
[425045791,1781445951000,-4500.0,0.00037992,120]
[425045789,1781445951000,-173.04506452,0.00037992,120]
[425045797,1781445951000,-1436.46719592,0.00037992,120]
[425045786,1781445951000,-163.53081993,0.00037992,120]
[425045788,1781445951000,-252.78436894,0.00037992,120]
[425045784,1781445951000,-2383.85518526,0.00037992,120]
[425045783,1781445951000,-800.0,0.00037992,120]
[425045782,1781445951000,-800.0,0.00037992,120]
[425045785,1781445951000,-524.08,0.00037992,120]
[425045780,1781445951000,-800.0,0.00037992,120]
[425045787,1781445951000,-1172.69822521,0.00037992,120]
[425045799,1781445951000,-3000.0,0.00037992,120]
[425045781,1781445951000,-800.0,0.00037992,120]
[425045800,1781445951000,-307.0,0.00037992,120]
[425045798,1781445951000,-2000.0,0.00037992,120]
[425045815,1781445951000,-2000.0,0.00037992,120]
[425045816,1781445951000,-2000.0,0.00037992,120]
[425045814,1781445951000,-2000.0,0.00037992,120]
[425045817,1781445951000,-2000.0,0.00037992,120]
[425045813,1781445951000,-842350.0,0.00037992,60]
[425045811,1781445951000,-1341.48,0.00037992,120]
[425045812,1781445951000,-266882.7857225,0.00037992,30]
[425045810,1781445951000,-1341.48,0.00037992,120]
[425045818,1781445951000,-2000.0,0.00037992,120]
[425045807,1781445951000,-1341.49,0.00037992,120]
[425045809,1781445951000,-1341.49,0.00037992,120]
[425045806,1781445951000,-1341.49,0.00037992,120]
[425045804,1781445951000,-906.95083574,0.00037992,120]
[425045805,1781445951000,-446.9819231,0.00037992,120]
[425045803,1781445951000,-544021.09007105,0.00037992,60]
[425045802,1781445951000,-2523.0,0.00037992,120]
[425045801,1781445951000,-660.0,0.00037992,120]
[425045808,1781445951000,-1341.49,0.00037992,120]
[425045832,1781445952000,-2000.0,0.00037992,120]
[425045833,1781445952000,-2000.0,0.00037992,120]
[425045831,1781445952000,-2000.0,0.00037992,120]
[425045830,1781445952000,-2000.0,0.00037992,120]
[425045829,1781445952000,-2000.0,0.00037992,120]
[425045828,1781445952000,-2000.0,0.00037992,120]
[425045827,1781445952000,-2000.0,0.00037992,120]
[425045822,1781445952000,-2000.0,0.00037992,120]
[425045824,1781445952000,-2000.0,0.00037992,120]
[425045823,1781445952000,-2000.0,0.00037992,120]
[425045825,1781445952000,-2000.0,0.00037992,120]
[425045821,1781445952000,-2000.0,0.00037992,120]
[425045819,1781445952000,-2000.0,0.00037992,120]
[425045820,1781445952000,-2000.0,0.00037992,120]
[425045834,1781445952000,-2000.0,0.00037992,120]
[425045826,1781445952000,-2000.0,0.00037992,120]
[425045835,1781445952000,-2000.0,0.00037992,120]
[425045836,1781445952000,-2000.0,0.00037992,120]
[425045837,1781445952000,-2000.0,0.00037992,120]
[425045853,1781445952000,-256.0,0.00037992,30]
[425045854,1781445952000,-133472.05740366,0.00037992,120]
[425045852,1781445952000,-3100.2795851,0.00037992,60]
[425045851,1781445952000,-240.0,0.00037992,31]
[425045849,1781445952000,-172.8866466,0.00037992,120]
[425045848,1781445952000,-1274.83240192,0.00037992,120]
[425045846,1781445952000,-1000.0,0.00037992,120]
[425045847,1781445952000,-218.57674922,0.00037992,120]
[425045850,1781445952000,-1011.81640018,0.00037992,120]
[425045844,1781445952000,-1000.0,0.00037992,120]
[425045843,1781445952000,-1000.0,0.00037992,120]
[425045842,1781445952000,-1000.0,0.00037992,120]
[425045841,1781445952000,-1559.0,0.00037992,120]
[425045840,1781445952000,-486.0,0.00037992,60]
[425045839,1781445952000,-4866.14728498,0.00037992,120]
[425045838,1781445952000,-1025.3381555,0.00037992,120]
[425045845,1781445952000,-1000.0,0.00037992,120]
[425045865,1781445953000,-494.91,0.00037992,30]
[425045873,1781445953000,-5000.0,0.00037992,120]
[425045871,1781445953000,-494.91,0.00037992,30]
[425045870,1781445953000,-494.91,0.00037992,30]
[425045868,1781445953000,-494.91,0.00037992,30]
[425045866,1781445953000,-494.91,0.00037992,30]
[425045867,1781445953000,-494.91,0.00037992,30]
[425045864,1781445953000,-494.91,0.00037992,30]
[425045855,1781445953000,-50000.0,0.00037992,64]
[425045863,1781445953000,-494.91,0.00037992,30]
[425045860,1781445953000,-302125.12,0.00037992,30]
[425045859,1781445953000,-750.0,0.00037992,120]
[425045861,1781445953000,-4000.0,0.00037992,30]
[425045858,1781445953000,-984.39208397,0.00037992,120]
[425045857,1781445953000,-218.9188928,0.00037992,120]
[425045856,1781445953000,-49000.0,0.00037992,65]
[425045872,1781445953000,-494.92,0.00037992,30]
[425045862,1781445953000,-214.49255488,0.00037992,120]
[425045874,1781445953000,-2000.0,0.00037992,120]
[425045869,1781445953000,-494.91,0.00037992,30]
[425045875,1781445953000,-494.19,0.00037992,30]
[425045876,1781445953000,-494.19,0.00037992,30]
[425045894,1781445953000,-494.19,0.00037992,30]
[425045893,1781445953000,-494.19,0.00037992,30]
[425045892,1781445953000,-494.19,0.00037992,30]
[425045890,1781445953000,-494.19,0.00037992,30]
[425045887,1781445953000,-494.19,0.00037992,30]
[425045889,1781445953000,-494.19,0.00037992,30]
[425045888,1781445953000,-494.19,0.00037992,30]
[425045886,1781445953000,-494.19,0.00037992,30]
[425045891,1781445953000,-494.19,0.00037992,30]
[425045883,1781445953000,-494.19,0.00037992,30]
[425045884,1781445953000,-494.19,0.00037992,30]
[425045881,1781445953000,-494.19,0.00037992,30]
[425045882,1781445953000,-494.19,0.00037992,30]
[425045895,1781445953000,-494.19,0.00037992,30]
[425045879,1781445953000,-494.19,0.00037992,30]
[425045880,1781445953000,-494.19,0.00037992,30]
[425045878,1781445953000,-494.19,0.00037992,30]
[425045885,1781445953000,-494.19,0.00037992,30]
[425045877,1781445953000,-494.19,0.00037992,30]
[425045904,1781445954000,-500.0,0.00037992,120]
[425045906,1781445954000,-500.0,0.00037992,120]
[425045905,1781445954000,-500.0,0.00037992,120]
[425045901,1781445954000,-500.0,0.00037992,120]
[425045902,1781445954000,-167.50805821,0.00037992,120]
[425045897,1781445954000,-494.19,0.00037992,30]
[425045900,1781445954000,-1000.0,0.00037992,30]
[425045899,1781445954000,-494.19,0.00037992,30]
[425045898,1781445954000,-494.19,0.00037992,30]
[425045907,1781445954000,-500.0,0.00037992,120]
[425045903,1781445954000,-196.41165882,0.00037992,120]
[425045908,1781445954000,-500.0,0.00037992,120]
[425045896,1781445954000,-494.19,0.00037992,30]
[425045909,1781445954000,-500.0,0.00037992,120]
[425045920,1781445954000,-188.66,0.00037992,30]
[425045921,1781445954000,-73325.39760963,0.00037992,120]
[425045919,1781445954000,-50000.0,0.00037992,70]
[425045918,1781445954000,-50000.0,0.00037992,69]
[425045917,1781445954000,-50000.0,0.00037992,68]
[425045910,1781445954000,-500.0,0.00037992,120]
[425045916,1781445954000,-50000.0,0.00037992,67]
[425045914,1781445954000,-4500.0,0.00037992,120]
[425045913,1781445954000,-5000.0,0.00037992,120]
[425045911,1781445954000,-343.12348229,0.00037992,120]
[425045912,1781445954000,-4500.0,0.00037992,120]
[425045915,1781445954000,-50000.0,0.00037992,66]
[425045933,1781445955000,-492.07,0.00037992,120]
[425045929,1781445955000,-5000.0,0.00037992,42]
[425045931,1781445955000,-3757.89952,0.00037992,30]
[425045930,1781445955000,-20000.0,0.00037992,120]
[425045927,1781445955000,-538.52734233,0.00037992,120]
[425045925,1781445955000,-1775.78370861,0.00037992,40]
[425045926,1781445955000,-824.93693492,0.00037992,120]
[425045924,1781445955000,-1757.54121394,0.00037992,120]
[425045922,1781445955000,-86452.48810089,0.00037992,120]
[425045932,1781445955000,-492.07,0.00037992,120]
[425045928,1781445955000,-50000.0,0.00037992,120]
[425045923,1781445955000,-6000.0,0.00037992,120]
[425045934,1781445955000,-492.07,0.00037992,120]
[425045936,1781445955000,-492.07,0.00037992,120]
[425045935,1781445955000,-492.07,0.00037992,120]
[425045946,1781445955000,-492.07,0.00037992,120]
[425045947,1781445955000,-492.07,0.00037992,120]
[425045948,1781445955000,-492.07,0.00037992,120]
[425045944,1781445955000,-492.07,0.00037992,120]
[425045943,1781445955000,-492.07,0.00037992,120]
[425045945,1781445955000,-492.07,0.00037992,120]
[425045941,1781445955000,-492.07,0.00037992,120]
[425045939,1781445955000,-492.07,0.00037992,120]
[425045940,1781445955000,-492.07,0.00037992,120]
[425045937,1781445955000,-492.07,0.00037992,120]
[425045938,1781445955000,-492.07,0.00037992,120]
[425045942,1781445955000,-492.07,0.00037992,120]
[425045957,1781445956000,-492.07,0.00037992,120]
[425045960,1781445956000,-492.07,0.00037992,120]
[425045959,1781445956000,-492.07,0.00037992,120]
[425045958,1781445956000,-492.07,0.00037992,120]
[425045956,1781445956000,-492.07,0.00037992,120]
[425045950,1781445956000,-492.07,0.00037992,120]
[425045955,1781445956000,-492.07,0.00037992,120]
[425045953,1781445956000,-492.07,0.00037992,120]
[425045951,1781445956000,-492.07,0.00037992,120]
[425045962,1781445956000,-492.07,0.00037992,120]
[425045949,1781445956000,-492.07,0.00037992,120]
[425045954,1781445956000,-492.07,0.00037992,120]
[425045961,1781445956000,-492.07,0.00037992,120]
[425045952,1781445956000,-492.07,0.00037992,120]
[425045964,1781445956000,-492.07,0.00037992,120]
[425045963,1781445956000,-492.07,0.00037992,120]
[425045977,1781445956000,-1457.3259,0.00037992,120]
[425045975,1781445956000,-173.91691917,0.00037992,120]
[425045974,1781445956000,-570.59735214,0.00037992,30]
[425045972,1781445956000,-293.49,0.00037992,120]
[425045973,1781445956000,-328.72454002,0.00037992,45]
[425045976,1781445956000,-152.616612,0.00037992,30]
[425045969,1781445956000,-492.07,0.00037992,120]
[425045970,1781445956000,-492.07,0.00037992,120]
[425045967,1781445956000,-492.07,0.00037992,120]
[425045968,1781445956000,-492.07,0.00037992,120]
[425045966,1781445956000,-492.07,0.00037992,120]
[425045965,1781445956000,-492.07,0.00037992,120]
[425045971,1781445956000,-492.07,0.00037992,120]
[425045988,1781445957000,-152.6789396,0.00037992,30]
[425045995,1781445957000,-161.69468476,0.00037992,60]
[425045993,1781445957000,-184.10187976,0.00037992,120]
[425045992,1781445957000,-161.0348379,0.00037992,120]
[425045991,1781445957000,-202.80109686,0.00037992,120]
[425045989,1781445957000,-236.48879231,0.00037992,120]
[425045990,1781445957000,-161.91618687,0.00037992,120]
[425045985,1781445957000,-230.24772437,0.00037992,120]
[425045980,1781445957000,-491.0,0.00037992,60]
[425045986,1781445957000,-164.34175169,0.00037992,120]
[425045984,1781445957000,-2505.08193886,0.00037992,120]
[425045982,1781445957000,-228.0,0.00037992,30]
[425045983,1781445957000,-1551.38421117,0.00037992,120]
[425045981,1781445957000,-618.0,0.00037992,120]
[425045994,1781445957000,-263.6108816,0.00037992,120]
[425045979,1781445957000,-239.14162661,0.00037992,120]
[425045987,1781445957000,-233.0,0.00037992,120]
[425045996,1781445957000,-1162.92591215,0.00037992,120]
[425045978,1781445957000,-169.63503698,0.00037992,120]
[425045997,1781445957000,-169.51189538,0.00037992,120]
[425046014,1781445957000,-252.51686824,0.00037992,120]
[425046013,1781445957000,-9805.784748,0.00037992,60]
[425046012,1781445957000,-1000.999997,0.00037992,30]
[425046009,1781445957000,-866.02,0.00037992,120]
[425046010,1781445957000,-1800.0,0.00037992,120]
[425046011,1781445957000,-3106.0104807,0.00037992,60]
[425046005,1781445957000,-1154.2182826,0.00037992,120]
[425046008,1781445957000,-273.39,0.00037992,120]
[425046015,1781445957000,-4217.24770723,0.00037992,120]
[425046007,1781445957000,-529.0,0.00037992,120]
[425046006,1781445957000,-20858.88332128,0.00037992,120]
[425045999,1781445957000,-154.7572426,0.00037992,30]
[425045998,1781445957000,-2126.33235788,0.00037992,120]
[425046000,1781445957000,-158.41,0.00037992,60]
[425046004,1781445957000,-172.22,0.00037992,30]
[425046002,1781445957000,-1212.3478393,0.00037992,120]
[425046003,1781445957000,-890.14083712,0.00037992,120]
[425046001,1781445957000,-302.78,0.00037992,120]
[425046027,1781445958000,-216328.77393352,0.00037992,49]
[425046026,1781445958000,-60000.0,0.00037992,120]
[425046028,1781445958000,-357.22303272,0.00037992,30]
[425046025,1781445958000,-105000.000001,0.00037992,32]
[425046022,1781445958000,-1000.0,0.00037992,65]
[425046024,1781445958000,-2098.36426834,0.00037992,30]
[425046023,1781445958000,-343549.0,0.00037992,90]
[425046017,1781445958000,-3935.54476583,0.00037992,60]
[425046019,1781445958000,-452.49546941,0.00037992,120]
[425046020,1781445958000,-105729.09563434,0.00037992,60]
[425046016,1781445958000,-40000.0,0.00037992,90]
[425046021,1781445958000,-22632.93678697,0.00037992,60]
[425046018,1781445958000,-8459.20808534,0.00037992,60]
[425046029,1781445958000,-4175.78640492,0.00037992,120]
[425046030,1781445958000,-2564.97181489,0.00037992,120]
[425046044,1781445958000,-621228.66875602,0.00037992,30]
[425046043,1781445958000,-102692.99999501,0.00037992,30]
[425046042,1781445958000,-16403.88100312,0.00037992,30]
[425046041,1781445958000,-100000.0,0.00037992,30]
[425046040,1781445958000,-989.07,0.00037992,120]
[425046032,1781445958000,-10464.0,0.00037992,30]
[425046038,1781445958000,-737.29,0.00037992,120]
[425046037,1781445958000,-50000.0,0.00037992,30]
[425046036,1781445958000,-100000.0,0.00037992,30]
[425046034,1781445958000,-100000.0,0.00037992,30]
[425046035,1781445958000,-319.09220667,0.00037992,30]
[425046033,1781445958000,-2702194.86188779,0.00037992,30]
[425046031,1781445958000,-3309.0,0.00037992,120]
[425046039,1781445958000,-737.29,0.00037992,120]
[425046045,1781445976000,-404.79197461,0.00027397,120]
[425046047,1781445976000,-187.491189,0.00027708,120]
[425046046,1781445976000,-187.491189,0.00027708,120]
[425046050,1781445976000,-200.75089702,0.00029,120]
[425046049,1781445976000,-5115.0,0.00028767,120]
[425046051,1781445976000,-2902.0,0.00029,120]
[425046052,1781445976000,-1001.0,0.00029041,120]
[425046048,1781445976000,-167.6,0.00027847,120]
[425046053,1781445977000,-1209.29103,0.0003,120]
[425046055,1781445977000,-217.19485153,0.0003,120]
[425046054,1781445977000,-177.69729544,0.0003,120]
[425046056,1781445977000,-2727.0,0.0003,120]
[425046063,1781445977000,-160.0,0.0003,120]
[425046057,1781445977000,-1014.22275,0.0003,120]
[425046060,1781445977000,-3000.0,0.0003,120]
[425046058,1781445977000,-209.44295239,0.0003,120]
[425046059,1781445977000,-1035.38178031,0.0003,120]
[425046062,1781445977000,-333.1566313,0.0003,120]
[425046064,1781445977000,-505.0,0.0003001,120]
[425046071,1781445977000,-500.0,0.00030136,120]
[425046065,1781445977000,-465.0,0.000301,120]
[425046061,1781445977000,-1174.87212255,0.0003,120]
[425046074,1781445977000,-500.0,0.00030136,120]
[425046072,1781445977000,-500.0,0.00030136,120]
[425046073,1781445977000,-500.0,0.00030136,120]
[425046075,1781445977000,-500.0,0.00030136,120]
[425046068,1781445977000,-500.0,0.00030136,120]
[425046069,1781445977000,-500.0,0.00030136,120]
[425046066,1781445977000,-500.0,0.00030136,120]
[425046067,1781445977000,-500.0,0.00030136,120]
[425046070,1781445977000,-500.0,0.00030136,120]
[425046077,1781445978000,-151.0,0.00015626,2]
[425046076,1781445978000,-500.0,0.00030136,120]
[425046081,1781445980000,-1012796.10236027,0.00037992,30]
[425046079,1781445980000,-25352.57320563,0.00037992,120]
[425046080,1781445980000,-13410.52601269,0.00037992,30]
[425046083,1781445980000,-20749.64410939,0.00037992,30]
[425046078,1781445980000,-1531268.96216957,0.00037992,30]
[425046084,1781445980000,-1024493.54411806,0.00037992,30]
[425046087,1781445980000,-203600.16062542,0.00037992,30]
[425046085,1781445980000,-31862.26685828,0.00037992,120]
[425046086,1781445980000,-25843.35291989,0.00037992,30]
[425046082,1781445980000,-3813207.6396503,0.00037992,30]
[425046093,1781445981000,-1291663.8079705,0.00037992,30]
[425046092,1781445981000,-5000.0,0.00037992,120]
[425046090,1781445981000,-301.42,0.00037992,120]
[425046091,1781445981000,-150.0,0.00037992,60]
[425046089,1781445981000,-150.0,0.00037992,80]
[425046088,1781445981000,-150.0,0.00037992,40]
[425046095,1781445989000,-160751.71534308,0.00037992,30]
[425046094,1781445989000,-5008871.66934497,0.00037992,30]
[425046096,1781445989000,-490901.91309622,0.00037992,30]
[425046097,1781445989000,-46365.43994563,0.00037992,30]
[425046099,1781445989000,-207174.76073056,0.00037992,30]
[425046098,1781445989000,-134333.10446965,0.00037992,30]
[425046101,1781445989000,-65688.29996069,0.00037992,30]
[425046102,1781445989000,-14569.29351158,0.00037992,30]
[425046100,1781445989000,-137203.7342809,0.00037992,30]
[425046103,1781445990000,-112094.0318253,0.00037992,30]
[425046105,1781445990000,-150000.000001,0.00037992,30]
[425046104,1781445990000,-32717.9431853,0.00037992,30]
[425046106,1781445990000,-34000.0,0.00037992,30]
[425046108,1781445990000,-34000.0,0.00037992,30]
[425046107,1781445990000,-34000.0,0.00037992,30]
[425046111,1781445990000,-15675.0,0.00037992,107]
[425046110,1781445990000,-1253.0,0.00037992,30]
[425046112,1781445990000,-2662.45278885,0.00037992,60]
[425046113,1781445990000,-32415.94537328,0.00037992,50]
[425046115,1781445990000,-2181128.21199468,0.00037992,30]
[425046114,1781445990000,-70193.48414831,0.00037992,120]
[425046109,1781445990000,-34000.0,0.00037992,30]
[425046116,1781445998000,-758479.44388468,0.00037992,30]
[425046117,1781445998000,-2517.301,0.00037992,30]
[425046120,1781445998000,-582677.71909624,0.00037992,120]
[425046119,1781445998000,-1509.08942941,0.00037992,120]
[425046121,1781445998000,-5000.0,0.00037992,120]
[425046122,1781445998000,-5000.0,0.00037992,120]
[425046124,1781445998000,-359.65,0.00037992,120]
[425046123,1781445998000,-2405.85766673,0.00037992,30]
[425046118,1781445998000,-6100.67917806,0.00037992,30]
[425046127,1781445998000,-5000.0,0.00037992,41]
[425046128,1781445998000,-300000.0,0.00037992,120]
[425046125,1781445998000,-893.30901699,0.00037992,120]
[425046130,1781445998000,-38500.0,0.00037992,45]
[425046129,1781445998000,-40000.0,0.00037992,30]
[425046133,1781445998000,-63097.929,0.00037992,120]
[425046131,1781445998000,-82478.04879145,0.00037992,120]
[425046132,1781445998000,-14853.19457179,0.00037992,35]
[425046126,1781445998000,-19471.82724273,0.00037992,120]
[425046149,1781445999000,-400.0,0.00037992,30]
[425046148,1781445999000,-400.0,0.00037992,30]
[425046147,1781445999000,-400.0,0.00037992,30]
[425046146,1781445999000,-400.0,0.00037992,30]
[425046144,1781445999000,-400.0,0.00037992,30]
[425046150,1781445999000,-217.64259737,0.00037992,30]
[425046145,1781445999000,-400.0,0.00037992,30]
[425046139,1781445999000,-400.0,0.00037992,30]
[425046140,1781445999000,-400.0,0.00037992,30]
[425046141,1781445999000,-400.0,0.00037992,30]
[425046138,1781445999000,-400.0,0.00037992,30]
[425046137,1781445999000,-400.0,0.00037992,30]
[425046136,1781445999000,-400.0,0.00037992,30]
[425046135,1781445999000,-400.0,0.00037992,30]
[425046134,1781445999000,-3152.70958145,0.00037992,120]
[425046142,1781445999000,-400.0,0.00037992,30]
[425046152,1781445999000,-400.0,0.00037992,30]
[425046143,1781445999000,-400.0,0.00037992,30]